[Event "10th Iberoamericano-ch 2024"]
[Site "Linares"]
[Date "2024.09.25"]
[Round "2.16"]
[White "Veiga, Jose Francisco R P N"]
[Black "Noboa Silva, Kevin"]
[Result "1/2-1/2"]
[ECO "C10"]
[WhiteElo "2404"]
[BlackElo "2270"]
[Annotator "TA"]
[PlyCount "133"]
[EventDate "2024.09.25"]
[EventType "swiss"]
[EventCountry "ESP"]
[SourceTitle "playchess.com"]
[Source "ChessBase"]
[SourceQuality "1"]
[TimeControl "5400+30"]

{[%evp 24,133,50,29,31,32,43,26,27,12,0,11,19,0,27,12,19,0,0,0,0,0,0,0,0,0,0,0,9,0,1,-8,0,-25,-27,-15,-18,-44,-6,-5,-8,-2,-2,-21,-20,-22,-26,-25,-26,-164,0,0,0,0,0,0,0,0,0,0,0,-112,-111,-142,-139,-158,-154,-135,-60,-67,-22,-22,-8,-8,-8,-8,0,0,0,0,0,0,0,0,8,8,8,8,8,8,8,0,0,0,0,0,0,0,0,0,0,0,0,0,0,0,0,0,0,0,0,0]} 1. e4 {[%emt 0:06:07]} e6 {[%emt 0:00:18]} 2. d4 {[%emt 0:00:29]} d5 {[%emt 0:00:16]} 3. Nd2 {[%emt 0:00:11]} dxe4 {[%emt 0:00:40]} 4. Nxe4 {[%emt 0:00:19]} Nd7 {[%emt 0:00:09]} 5. Nf3 {[%emt 0:00:44]} Ngf6 {[%emt 0:00:22]} 6. Bd3 {[%emt 0:00:13]} Nxe4 {[%emt 0:01:14]} 7. Bxe4 {[%emt 0:00:07]} Nf6 {[%emt 0:00:53]} 8. Bd3 {[%emt 0:01:05]} c5 {[%emt 0:01:54]} 9. O-O {[%emt 0:01:55]} cxd4 {[%emt 0:01:14]} 10. Nxd4 {[%emt 0:00:22]} Be7 {[%emt 0:00:18]} 11. Re1 {[%emt 0:03:36]} O-O {[%emt 0:00:55]} 12. c3 {[%emt 0:03:14]} a6 {[%emt 0:03:49]} 13. Bf4 {[%emt 0:04:50]} Nd5 {[%emt 0:09:08]} 14. Be5 {[%emt 0:06:05]} Bf6 {[%emt 0:03:54]} 15. Qh5 {[%emt 0:27:52][%csl Gd3][%cal Rh5h7] [#]} g6 {[%emt 0:06:54] White has an edge.} 16. Qh6 {[%emt 0:01:55]} (16. Qe2 {simplifies} Qb6 17. Rab1 Rd8 18. Bxf6 Nxf6 19. Nf3) 16... Bxe5 {[%emt 0:05:04]} 17. Rxe5 {[%emt 0:00:07]} Qf6 {[%emt 0:00:47]} 18. Rae1 {[%emt 0:00:16]} Bd7 {[%emt 0:02:46]} (18... b5 $5) 19. Bc4 {[%emt 0:03:54]} Bc6 {[%emt 0:05:48]} 20. f3 {[%emt 0:04:47]} Rfd8 {[%emt 0:05:44]} 21. Kf2 {[%emt 0:02:41]} a5 {[%emt 0:04:07]} 22. a3 {[%emt 0:04:47]} Rac8 {[%emt 0:02:00]} 23. Kg3 {[%emt 0:03:38]} Rd6 {[%emt 0:07:01]} 24. Ba2 {[%emt 0:03:23]} Rcd8 {[%emt 0:03:07]} 25. h4 {[%emt 0:03:12]} Qg7 {[%emt 0:10:03]} 26. Qxg7+ {[%emt 0:03:43]} Kxg7 {[%emt 0:00:03]} 27. Nb3 {[%emt 0:01:54]} b6 {[%emt 0:01:00]} 28. c4 {[%emt 0:01:49]} Ne7 {[%emt 0:01:57][%cal Bd5e7,Be7f5,Bf5d4][%mdl 32]} 29. c5 {[%emt 0:00:43]} bxc5 {[%emt 0:02:24]} 30. Nxa5 {[%emt 0:01:53][%cal Bb3a5,Ba5c4,Bc4d6][%mdl 32]} Nf5+ {[%emt 0:00:32]} 31. Kh3 {[%emt 0:02:44]} Bd5 {[%emt 0:04:37]} 32. Bxd5 {[%emt 0:00:40]} Rxd5 {[%emt 0:00:06]} 33. Nc4 {[%emt 0:03:13]} Rb8 {[%emt 0:01:40]} 34. g4 {[%emt 0:01:24]} Nd4 {[%emt 0:00:33]} 35. Kg3 {[%emt 0:00:55]} h5 {[%emt 0:06:16]} 36. Kf4 {[%emt 0:02:36]} (36. R1e3 $11 {and White stays safe.}) 36... Nc6 $2 {[%emt 0:03:06]} (36... f6 $19 37. R5e4 (37. Rxd5 $2 exd5 38. Ne3 g5+ 39. Kg3 gxh4+ 40. Kf4 Rxb2 $19) 37... f5) 37. Rxd5 $11 {[%emt 0:00:40]} exd5 {[%emt 0:00:07][%mdl 4096] Endgame. KRN-KRN} 38. Nd6 {[%emt 0:00:03]} hxg4 {[%emt 0:00:25]} 39. fxg4 {[%emt 0:00:50]} Rxb2 {[%emt 0:06:20]} 40. Ne8+ {[%emt 0:00:05]} Kf8 {[%emt 0:00:20]} 41. Nf6 {[%emt 0:00:07]} Ne7 {[%emt 0:00:33]} 42. Kg5 {[%emt 0:01:40]} (42. Nd7+ $11 {remains equal.} Ke8 43. Nxc5) 42... c4 $17 {[%emt 0:00:57]} 43. Nd7+ {[%emt 0:00:34]} Ke8 {[%emt 0:00:12]} 44. Ne5 {[%emt 0:00:07]} Rb6 {[%emt 0:00:30] [#] Wards off Nc6. Hoping for ...f6+.} 45. Kf4 {[%emt 0:00:46]} c3 {[%emt 0:01:48]} (45... Re6 $17 {[%cal Og6g5] ...g5+! would now be deadly.} 46. Nf3 Ra6) 46. Ke3 $15 {[%emt 0:00:41]} Re6 {[%emt 0:00:36]} 47. Kd3 {[%emt 0:00:01] The position is equal.} Nc6 {[%emt 0:00:50]} 48. Nf3 {[%emt 0:00:01]} Rxe1 {[%emt 0:00:35]} (48... d4 {looks sharper.} 49. h5 Rxe1 50. Nxe1 gxh5 51. gxh5 f5) 49. Nxe1 $11 {[%emt 0:00:01] KN-KN} Ne5+ {[%emt 0:00:33]} (49... d4 {keeps more tension.} 50. Ke4 f6 51. Kd5 f5) 50. Kxc3 {[%emt 0:00:23]} Nxg4 {[%emt 0:00:01]} 51. Kd4 {[%emt 0:00:21]} Nf6 {[%emt 0:00:41]} 52. Ke5 {[%emt 0:00:21]} Ke7 {[%emt 0:00:16]} 53. Nf3 {[%emt 0:00:17]} Ng4+ {[%emt 0:01:04]} 54. Kxd5 {[%emt 0:00:08]} Kd7 {[%emt 0:00:21]} 55. a4 {[%emt 0:01:04]} Kc7 {[%emt 0:00:12]} 56. Ng5 {[%emt 0:01:03]} Ne3+ {[%emt 0:00:52]} 57. Kc5 {[%emt 0:00:36]} Nf5 {[%emt 0:00:19]} 58. Nxf7 {[%emt 0:00:13]} Nxh4 {[%emt 0:00:07]} 59. a5 {[%emt 0:00:09]} Nf5 {[%emt 0:00:45]} 60. a6 {[%emt 0:00:06]} Ne7 {[%emt 0:00:26]} 61. Nd6 {[%emt 0:01:33]} Nc8 {[%emt 0:00:25]} 62. Nb5+ {[%emt 0:01:00]} Kb8 {[%emt 0:00:06]} 63. Kd5 {[%emt 0:00:43]} Na7 {[%emt 0:00:24]} 64. Nxa7 {[%emt 0:00:25]} Kxa7 {[%emt 0:00:04]} 65. Ke5 {[%emt 0:00:05]} Kxa6 {[%emt 0:00:02]} 66. Kf6 {[%emt 0:00:05]} Kb6 {[%emt 0:00:03]} 67. Kxg6 {[%emt 0:00:04] Weighted Error Value: White=0.13 (very precise) /Black=0.10 (very precise) .  Missed win:     	---       	Black=1      Mistake:       	White=2     	Black=1      Inaccurate:     	---       	Black=3      OK:         	White=20    	Black=22     Best:        	White=4     	Black=2} 1/2-1/2

[Event "10th Iberoamericano-ch 2024"]
[Site "Linares"]
[Date "2024.09.25"]
[Round "2.17"]
[White "Moral Garcia, Serafin"]
[Black "Fernandez Sanchez, Fernando Miguel"]
[Result "0-1"]
[ECO "B72"]
[WhiteElo "2262"]
[BlackElo "2399"]
[Annotator "RC"]
[PlyCount "82"]
[EventDate "2024.09.25"]
[EventType "swiss"]
[EventCountry "ESP"]
[SourceTitle "playchess.com"]
[Source "ChessBase"]
[SourceQuality "1"]
[TimeControl "5400+30"]

1. e4 {[%emt 0:00:01]} c5 {[%emt 0:12:34]} 2. Nf3 {[%emt 0:00:14]} d6 {[%emt 0:00:10]} 3. d4 {[%emt 0:00:15]} cxd4 {[%emt 0:00:05]} 4. Nxd4 {[%emt 0:00:14]} Nf6 {[%emt 0:00:08]} 5. Nc3 {[%emt 0:00:17]} g6 {[%emt 0:00:24]} 6. Be3 {[%emt 0:00:34]} Nc6 {[%emt 0:00:11]} 7. f3 {[%emt 0:00:45]} h5 {[%emt 0:00:26]} 8. Qd2 {[%emt 0:03:19]} Nxd4 {[%emt 0:00:18]} 9. Qxd4 {[%emt 0:04:48]} Bg7 {[%emt 0:00:27]} 10. O-O-O {[%emt 0:02:38]} O-O {[%emt 0:03:49]} 11. Qd2 {[%emt 0:02:27]} Qa5 {[%emt 0:00:08]} 12. Bc4 {[%emt 0:02:23]} Be6 {[%emt 0:00:19]} 13. Bxe6 {[%emt 0:04:04]} fxe6 {[%emt 0:00:04]} 14. Kb1 {[%emt 0:01:40]} Nd7 {[%emt 0:02:44]} 15. Bd4 {[%emt 0:02:00]} Bxd4 {[%emt 0:15:28]} 16. Qxd4 {[%emt 0:02:07]} Rac8 {[%emt 0:00:03]} 17. Ne2 {[%emt 0:03:36]} Ne5 {[%emt 0:05:09]} 18. Qd2 {[%emt 0:09:47]} Qb6 {[%emt 0:14:28]} 19. Qd4 {[%emt 0:01:56]} Qa6 {[%emt 0:00:56]} 20. Nc1 {[%emt 0:00:55]} Rc4 {[%emt 0:01:29]} 21. Qd2 {[%emt 0:02:01]} Rfc8 {[%emt 0:02:48]} 22. c3 {[%emt 0:03:52]} b5 {[%emt 0:09:53]} 23. Qg5 {[%emt 0:10:39]} b4 {[%emt 0:15:33]} 24. Qxe7 {[%emt 0:11:20]} bxc3 {[%emt 0:00:29]} 25. Rxd6 {[%emt 0:03:57]} cxb2 {[%emt 0:00:04]} 26. Qxe6+ {[%emt 0:02:24]} Kh7 {[%emt 0:00:03]} 27. Nb3 {[%emt 0:04:17]} Qb5 {[%emt 0:04:04]} 28. Kxb2 {[%emt 0:04:34]} Nd3+ {[%emt 0:09:08]} 29. Rxd3 {[%emt 0:00:24]} Rc2+ {[%emt 0:00:03]} 30. Ka3 {[%emt 0:02:58]} Qxd3 {[%emt 0:00:02]} 31. Qf7+ {[%emt 0:08:16]} Kh6 {[%emt 0:00:05]} 32. Qf4+ {[%emt 0:00:06]} Kg7 {[%emt 0:00:29]} 33. Qe5+ {[%emt 0:00:15]} Kf7 {[%emt 0:00:10]} 34. Qd5+ {[%emt 0:00:40]} Qxd5 {[%emt 0:00:03]} 35. exd5 {[%emt 0:00:02]} Rxg2 {[%emt 0:00:38]} 36. Nd4 {[%emt 0:00:15]} Rd2 {[%emt 0:00:41]} 37. Nb3 {[%emt 0:00:43]} Rxd5 {[%emt 0:00:10]} 38. f4 {[%emt 0:00:07]} Rc4 {[%emt 0:01:09]} 39. Rf1 {[%emt 0:00:01]} Kf6 {[%emt 0:00:59]} 40. Kb2 {[%emt 0:00:10]} Kf5 {[%emt 0:00:34]} 41. Re1 {[%emt 0:00:09]} a5 {[%emt 0:00:48]} 0-1

[Event "10th Iberoamericano-ch 2024"]
[Site "Linares"]
[Date "2024.09.25"]
[Round "2.18"]
[White "Ynojosa Aponte, Felix Jose"]
[Black "Palma Villanueva, Miguel Tadeo"]
[Result "1-0"]
[ECO "A10"]
[WhiteElo "2398"]
[BlackElo "2266"]
[Annotator "TA"]
[PlyCount "75"]
[EventDate "2024.09.25"]
[EventType "swiss"]
[EventCountry "ESP"]
[SourceTitle "playchess.com"]
[Source "ChessBase"]
[SourceQuality "1"]
[TimeControl "5400+30"]

{[%evp 9,75,48,87,85,84,101,109,107,90,42,54,45,62,45,45,0,38,39,37,37,79,68,60,-36,37,0,0,-127,-72,-78,-91,-89,52,60,32,64,58,63,41,47,68,71,184,168,195,326,322,326,392,300,4882,3352,4870,5210,5210,5210,5181,5210,5206,5206,1800,712,4133,1237,1252,1264,1268,1213]} 1. c4 {[%emt 0:05:45]} g6 {[%emt 0:00:49]} 2. d4 {[%emt 0:00:06]} Bg7 {[%emt 0:00:03]} 3. Nc3 {[%emt 0:00:03]} c5 {[%emt 0:00:03]} 4. d5 {[%emt 0:00:19]} Bxc3+ {[%emt 0:00:57]} 5. bxc3 {[%emt 0:00:04]} e5 {[%emt 0:00:05]} 6. e4 {[%emt 0:00:26]} d6 {[%emt 0:00:03]} 7. Bd3 {[%emt 0:00:21][%cal Bf1d3,Bd3c2,Bc2a4][%mdl 32]} Nd7 {[%emt 0:00:05]} 8. Ne2 {[%emt 0:00:29] White is better.} h5 {[%emt 0:01:37][%cal Bh7h5,Bh5h4][%mdl 32]} 9. Be3 {[%emt 0:00:58]} (9. h4 $16) 9... h4 $1 $14 {[%emt 0:08:40]} 10. Qd2 {[%emt 0:00:26]} Qe7 {[%emt 0:06:59][%cal Of7f5]} 11. h3 {[%emt 0:05:40]} f6 {[%emt 0:01:05]} 12. Bc2 {[%emt 0:01:32]} g5 {[%emt 0:02:13]} 13. a4 {[%emt 0:01:52][%cal Ba2a4,Ba4a5][%mdl 32]} Qg7 {[%emt 0:05:16]} 14. a5 {[%emt 0:00:23]} Kd8 15. Ba4 {White is much more active.} Ne7 {[%emt 0:03:49]} 16. Nc1 {[%emt 0:01:20]} (16. f3 $14) 16... Ng6 {[%emt 0:05:13]} ({Black should try} 16... f5 $1 $15 17. exf5 (17. Bxg5 Rg8 $11) 17... Nf6) 17. Nb3 {[%emt 0:00:22]} Nf4 {[%emt 0:00:16]} 18. Rh2 {[%emt 0:00:06]} (18. f3 $11 {remains equal.}) 18... Qh7 {[%emt 0:06:54]} (18... f5 $142 $1 19. f3 (19. exf5 $2 Nf6 $17) 19... Nf6) 19. Qc2 {[%emt 0:01:07] [#]} f5 $1 {[%emt 0:03:17]} 20. g3 {[%emt 0:02:18]} fxe4 {[%emt 0:05:30]} (20... hxg3 $17 21. fxg3 fxe4 (21... Nxh3 22. Bxg5+ Kc7 23. O-O-O $11)) 21. gxf4 {[%emt 0:00:24]} gxf4 {[%emt 0:03:00]} 22. Bxd7 {[%emt 0:00:55]} Bxd7 {[%emt 0:06:06] [#]} 23. Bxc5 {[%emt 0:00:18]} dxc5 {[%emt 0:00:06]} 24. Nxc5 {[%emt 0:00:05]} e3 $1 {[%emt 0:00:14]} 25. Qb2 {[%emt 0:03:09]} (25. Nxb7+ Kc7 26. Qxh7 Rxh7 $11) 25... exf2+ {[%emt 0:06:17]} (25... Rg8 $16 26. O-O-O (26. Qxb7 $2 Rc8 $19) (26. Nxb7+ Kc7 $17) 26... b6 27. Nxd7 (27. axb6 axb6 28. Nxd7 e2 $14) 27... Qxd7) 26. Rxf2 $18 {[%emt 0:01:18] Black must now prevent 0-0-0.} Rb8 {[%emt 0:00:04]} (26... Bxh3 27. O-O-O $16) 27. O-O-O {[%emt 0:07:37]} (27. Nxb7+ Ke8 28. a6 Bxh3 $16) 27... Kc8 {[%emt 0:00:30]} (27... Bxh3 28. Ne6+ Kc8 29. Qb5 Bxe6 30. dxe6 $18) 28. Qa3 {[%emt 0:05:55]} Re8 {[%emt 0:07:12]} (28... Bxh3 29. d6 Kd8 30. a6 $18) 29. d6 {[%emt 0:00:43] Strongly threatening Qb4.} e4 $2 {[%emt 0:05:04]} (29... Qg6 30. Na6 Qe4 (30... bxa6 $2 31. Qc5+ Kb7 32. Rb2+ $18) 31. Qc5+ (31. Nxb8 Kxb8 32. Qb4 Rc8 $11) 31... Qc6 32. Qxc6+ (32. Qxa7 $2 bxa6 33. Rd5 Qb7 $19) 32... Bxc6 33. Nxb8 Kxb8) 30. Nxd7 {[%emt 0:02:26] White is clearly winning.} (30. Rxf4 Qh6 31. Rdf1 Qxd6 $16 (31... Bxh3 $2 32. d7+ Bxd7 33. Nxd7 $18) (31... Rf8 $2 32. Ne6 $18)) 30... Kxd7 {[%emt 0:00:04]} 31. Qc5 {[%emt 0:00:59]} (31. Rxf4 Qh6 32. Rdf1 (32. Qa4+ $2 Kd8 $19) 32... Rf8 $11) 31... Rec8 {[%emt 0:00:19] Dodges Qc7+} 32. Qb5+ {[%emt 0:00:16]} ({Weaker is} 32. Qxa7 Qg7 33. Kb2 Rxc4 $16) 32... Rc6 {[%emt 0:00:05]} 33. Rxf4 {[%emt 0:00:23] White wants to mate with Rdf1.} a6 {[%emt 0:03:37]} 34. Qd5 {[%emt 0:00:18]} Rf8 {Dodges Rf7+} 35. Rxe4 {[%emt 0:01:57]} (35. Rxf8 $142 Qh6+ 36. Kb2 Qxf8 37. Qxe4) 35... Qh6+ {[%emt 0:00:17]} 36. Kb1 {[%emt 0:00:31]} (36. Kc2 $142 Qf6 37. Re7+ Kd8 38. Rxb7 Qf2+ 39. Kb3) 36... Qg6 {[%emt 0:00:04]} 37. Qe5 {[%emt 0:04:24]} Re8 {[#] Against Qe7+} 38. Qe7+ $3 {[%emt 0:00:36][%mdl 512] Weighted Error Value: White=0.30/Black=0.31.  Mistake:       	White=3     	Black=5      Inaccurate:     	White=2     	Black=3      OK:         	White=6     	Black=6      Best:        	White=3     	Black=1      Strong:       	---       	Black=3      Brilliant:      	White=1     	---} 1-0

[Event "10th Iberoamericano-ch 2024"]
[Site "Linares"]
[Date "2024.09.25"]
[Round "2.19"]
[White "Horcajuelo Rocamora, Martin"]
[Black "Jimenez Ruano, Adrian"]
[Result "1-0"]
[ECO "A75"]
[WhiteElo "2394"]
[BlackElo "2255"]
[Annotator "TA"]
[PlyCount "80"]
[EventDate "2024.09.25"]
[EventType "swiss"]
[EventCountry "ESP"]
[SourceTitle "playchess.com"]
[Source "ChessBase"]
[SourceQuality "1"]
[TimeControl "5400+30"]

{[%evp 28,80,42,39,50,44,57,43,26,39,68,68,62,85,95,85,171,180,170,168,357,335,241,167,160,162,158,166,222,160,167,80,77,42,38,0,79,74,156,143,156,10,1,0,39,8,15,8,15,10,8,12,466,440,1371]} 1. d4 {[%emt 0:00:01]} Nf6 {[%emt 0:02:27]} 2. c4 {[%emt 0:00:10]} e6 {[%emt 0:00:11]} 3. Nf3 {[%emt 0:00:10]} c5 {[%emt 0:00:15]} 4. d5 {[%emt 0:00:09]} d6 {[%emt 0:00:24]} 5. Nc3 {[%emt 0:01:47]} exd5 {[%emt 0:00:35]} 6. cxd5 {[%emt 0:00:41]} g6 {[%emt 0:00:21]} 7. e4 {[%emt 0:03:42]} a6 {[%emt 0:00:14]} 8. Be2 {[%emt 0:10:50]} Bg7 {[%emt 0:01:38]} 9. O-O {[%emt 0:05:08]} O-O {[%emt 0:00:11]} 10. a4 {[%emt 0:06:46]} Bg4 {[%emt 0:02:22]} 11. Bf4 {[%emt 0:02:41]} Re8 {[%emt 0:06:22]} 12. Nd2 {[%emt 0:10:21]} Bxe2 {[%emt 0:00:08]} 13. Qxe2 {[%emt 0:00:06]} Nh5 {[%emt 0:01:07]} 14. Be3 {[%emt 0:02:25]} Nd7 {[%emt 0:00:40]} 15. g4 {[%emt 0:06:02]} Nhf6 {[%emt 0:01:24]} 16. h3 {[%emt 0:00:23]} Rb8 {[%emt 0:06:44][%cal Ob7b5]} 17. Bf4 {[%emt 0:05:32]} Ne5 {[%emt 0:04:02] White is slightly better.} 18. Bg3 {[%emt 0:02:57]} b5 {[%emt 0:10:28]} 19. axb5 {[%emt 0:08:12]} axb5 {[%emt 0:00:44]} 20. Nxb5 {[%emt 0:01:43][%cal Bc3b5,Bb5a3,Ba3c4][%mdl 32]} Qb6 {[%emt 0:04:25] Wards off Ra6} 21. Bxe5 {[%emt 0:01:47]} dxe5 {[%emt 0:44:04]} (21... Rxe5 $16 22. Nc3 Qb7) 22. Na3 $18 {[%emt 0:03:06]} Qxb2 {[%emt 0:00:40][%cal Of6e4]} 23. Nac4 {[%emt 0:03:40]} Qc3 {[%emt 0:04:46]} (23... Qb5 24. Qf3 Qd7) 24. Ra3 $1 {[%emt 0:00:12]} Qc2 {[%emt 0:00:24]} 25. Qe3 {[%emt 0:00:50][%cal Of1a1] Inhibits Bh6.} Rb4 {[%emt 0:05:19]} 26. Rc3 {[%emt 0:06:14]} Qa4 {[%emt 0:00:59]} 27. Qxc5 {[%emt 0:02:29]} Nd7 {[%emt 0:01:45]} (27... Bf8 $142 28. d6 Rb7) 28. Qe3 {[%emt 0:02:36]} Bf8 {[%emt 0:00:38]} 29. d6 {[%emt 0:03:29]} (29. Kg2 $18) 29... Qa6 $16 {[%emt 0:00:01]} 30. Ra3 {[%emt 0:02:02]} Qc6 {[%emt 0:00:36]} 31. Rc3 {[%emt 0:02:48]} Qa6 $1 {[%emt 0:00:43] [#]} 32. Qd3 $1 {[%emt 0:01:12]} Re6 {[%emt 0:00:20] [#]} ({Black should try} 32... Rd8) 33. Ra3 $1 {[%emt 0:01:50]} ({Resist} 33. Nxe5 $6 Qxd6 34. Qxd6 (34. Nxd7 Rd4 $11) 34... Rxd6 $11) 33... Qc6 {[%emt 0:00:57][%cal Rf8d6]} 34. Ra7 {[%emt 0:00:35]} ({Only move:} 34. Qd5 $16 Qxd5 35. exd5) 34... Bxd6 $11 {[%emt 0:00:36]} 35. Qd5 {[%emt 0:00:07]} Nb8 {[%emt 0:00:37]} 36. Ra8 $36 {[%emt 0:01:19][%mdl 2048] White has good play.} Kg7 {[%emt 0:00:15]} 37. Rb1 {[%emt 0:01:54]} Rxb1+ {[%emt 0:00:39]} 38. Nxb1 {[%emt 0:00:01] Hoping for Nc3. A dynamic duo of knights.} Bc7 {[%emt 0:00:54]} 39. Nc3 {[%emt 0:01:13] And now Nb5 would win.} Qd7 {[%mdl 8192]} (39... Na6 $11 {and Black is okay.} 40. Nb5 Bb8) 40. Rxb8 $18 {[%emt 0:00:41]} Qc6 {Weighted Error Value: White=0.20 (precise) /Black=0.47.  Loses game:     	---       	Black=1      Mistake:       	White=2     	Black=5      Inaccurate:     	White=3     	Black=2      OK:         	White=6     	Black=7      Best:        	White=3     	Black=3      Strong:       	White=3     	Black=1} (40... Qxd5 $142 41. exd5 Bxb8) 1-0

[Event "10th Iberoamericano-ch 2024"]
[Site "Linares"]
[Date "2024.09.25"]
[Round "2.20"]
[White "Masague Artero, Guerau"]
[Black "Leiva, Gianmarco"]
[Result "0-1"]
[ECO "A08"]
[WhiteElo "2251"]
[BlackElo "2389"]
[Annotator "TA"]
[PlyCount "115"]
[EventDate "2024.09.25"]
[EventType "swiss"]
[EventCountry "ESP"]
[SourceTitle "playchess.com"]
[Source "ChessBase"]
[SourceQuality "1"]
[TimeControl "5400+30"]

{[%evp 15,115,66,77,63,102,45,62,50,62,53,116,83,116,81,84,72,73,58,58,71,72,45,55,54,53,47,47,47,53,62,45,45,44,44,43,0,0,0,0,0,0,0,0,0,3,0,1,0,9,0,0,-36,-47,-50,-6,-6,0,0,0,-8,-8,-8,-8,-27,-8,-8,-14,-217,-217,-188,-13,-11,-8,-8,-8,-8,-8,-8,-8,-88,-88,-88,-88,-88,-88,-88,-88,-88,-88,-88,-88,-88,-8,-8,-8,-8,-8,-29971,-29971,-29969,-5930,-4631]} 1. Nf3 {[%emt 0:00:04]} d5 {[%emt 0:12:10]} 2. g3 {[%emt 0:00:04]} c5 {[%emt 0:00:15]} 3. Bg2 {[%emt 0:00:07]} g6 {[%emt 0:02:24]} 4. c4 {[%emt 0:13:10]} d4 {[%emt 0:00:07]} 5. b4 {[%emt 0:00:06]} Bg7 {[%emt 0:00:10]} 6. d3 {[%emt 0:17:47] A08: King's Indian Attack.} e5 {[%emt 0:08:02]} 7. O-O {[%emt 0:03:21]} Ne7 {[%emt 0:00:15]} 8. bxc5 {[%emt 0:08:36]} Nd7 {[%emt 0:01:03]} 9. Ba3 {[%emt 0:00:08]} Qc7 {[%emt 0:01:11] [#]} 10. c6 $146 {[%emt 0:02:26]} (10. Qb3 $1 $16 {[%mdl 512]}) ({Predecessor:} 10. Qa4 O-O 11. Nbd2 Nxc5 12. Qb4 b6 13. Nxd4 Bb7 14. Bxb7 Qxb7 15. N4b3 Nxb3 16. Nxb3 {0-1 Sharafiev,A (2415)-Inarkiev,E (2664) RUS-chT rapid 2015 (2.8)}) 10... bxc6 $14 {[%emt 0:01:17]} 11. Nbd2 {[%emt 0:00:10]} Rb8 $1 {[%emt 0:00:10]} 12. Nb3 {[%emt 0:07:19]} Nb6 {[%emt 0:08:45]} (12... c5 $14) 13. Nfd2 {[%emt 0:06:10]} O-O {[%emt 0:02:02]} 14. Bxe7 {[%emt 0:09:14]} Qxe7 {[%emt 0:05:53]} 15. Na5 $1 {[%emt 0:00:16]} Bd7 {[%emt 0:00:07]} (15... c5 $2 16. Nc6 Qc7 17. Nxb8 $18) 16. Nxc6 {[%emt 0:02:07]} (16. Bxc6 Bh3 $11) 16... Bxc6 {[%emt 0:00:06]} 17. Bxc6 {[%emt 0:00:07]} Rfc8 {[%emt 0:00:03]} 18. Bg2 {[%emt 0:02:54]} Qa3 {[%emt 0:00:06]} 19. Qc1 {[%emt 0:05:17]} Qxc1 {[%emt 0:00:28]} 20. Rfxc1 {[%emt 0:00:33]} Bh6 {[%emt 0:00:30]} 21. Rc2 {[%emt 0:00:49]} Bxd2 {[%emt 0:00:05]} 22. Rxd2 {[%emt 0:00:09]} Na4 {[%emt 0:00:14]} 23. Rf1 {[%emt 0:09:01]} Nc3 {[%emt 0:04:28]} 24. f4 {[%emt 0:00:55]} Rc5 {[%emt 0:00:04]} 25. Bd5 {[%emt 0:04:53]} Nxd5 {[%emt 0:11:38]} 26. cxd5 {[%emt 0:00:07]} Rxd5 {[%emt 0:00:03]} 27. fxe5 {[%emt 0:00:12]} Re8 {[%emt 0:00:03]} 28. Rf6 {[%emt 0:03:30]} Rexe5 {[%emt 0:10:29]} 29. Rc2 {[%emt 0:00:13]} a5 {[%emt 0:10:22]} 30. Ra6 {[%emt 0:01:43]} h5 {[%emt 0:00:55]} 31. Ra7 {[%emt 0:00:23]} Rf5 {[%emt 0:02:30]} 32. Kg2 {[%emt 0:01:05]} Rd6 {[%emt 0:01:41]} 33. h3 {[%emt 0:03:28]} Rdf6 {[%emt 0:09:39]} 34. g4 {[%emt 0:00:13]} hxg4 {[%emt 0:00:04]} 35. hxg4 {[%emt 0:00:01]} Rg5 {[%emt 0:00:01]} 36. Kg3 {[%emt 0:01:02]} Rf1 {[%emt 0:00:04]} 37. Kh4 {[%emt 0:00:14]} Re5 {[%emt 0:00:32]} 38. Kg3 {[%emt 0:00:54]} g5 {[%emt 0:02:11]} 39. Rcc7 {[%emt 0:00:24]} (39. Kg2 Rf4 40. Rac7 Rxg4+ 41. Kf3 Rf4+ 42. Kg2 Rg4+ 43. Kf3 Rg1) 39... Kf8 {[%emt 0:03:47]} 40. Ra8+ {[%emt 0:00:42]} ({Avoid the trap} 40. Kg2 $2 Rf4 41. Rc2 Rxg4+ 42. Kf2 Kg7 $17) 40... Kg7 {[%emt 0:00:02]} 41. Raa7 $2 {[%emt 0:00:33]} (41. Kg2 $2 Rf4 (41... Rxe2+ $2 {perishes.} 42. Kxf1 Re3 43. Rxa5 $18) 42. Rc2 Rxg4+ 43. Kf2 Rf5+ 44. Ke1 Rg1+ 45. Kd2 g4 $19) (41. Rcc8 $1 $11) 41... Rxe2 $19 {[%emt 0:00:15]} 42. Rxa5 {[%emt 0:00:06] [#]} Rg1+ $2 {[%emt 0:00:06]} (42... Kg6 $1 $19 43. Rf5 Re3+ (43... Rxf5 44. gxf5+ Kf6 45. a4 $17) 44. Kg2 Rxf5 45. gxf5+ Kf6 (45... Kxf5 46. Rxf7+ Kg4 47. Rd7 $19)) 43. Kf3 $11 {[%emt 0:00:53]} Re3+ {[%emt 0:00:07]} 44. Kf2 {[%emt 0:00:01]} Rxg4 {[%emt 0:00:05]} 45. Rf5 {[%emt 0:00:05]} Rf4+ {[%emt 0:00:52]} 46. Rxf4 {[%emt 0:00:01]} gxf4 {[%emt 0:00:04]} 47. a4 {[%emt 0:01:25]} (47. Rc4 $1 $11 {keeps the balance.}) 47... Rxd3 $17 {[%emt 0:00:19]} 48. a5 {[%emt 0:00:04]} Kf6 {[%emt 0:01:27]} 49. a6 {[%emt 0:01:00]} Ra3 {[%emt 0:02:30]} 50. a7 {[%emt 0:00:57]} Ke6 {[%emt 0:00:41]} (50... d3 {looks sharper.} 51. Rd7 d2 52. Ke2 Ke6) 51. Rb7 {[%emt 0:00:29]} f6 {[%emt 0:00:20]} 52. Rc7 {[%emt 0:00:15]} Kd5 {[%emt 0:03:21]} 53. Ke2 {[%emt 0:00:04]} f3+ {[%emt 0:00:10]} (53... Kd6 $17 54. Rf7 d3+ 55. Kf3 Ke6) 54. Kf2 $11 {[%emt 0:00:38]} Ke4 {[%emt 0:00:25]} 55. Kg3 {[%emt 0:00:41]} Ke3 {[%emt 0:00:23]} 56. Rd7 $2 {[%emt 0:00:53][%mdl 8192] [#]} (56. Re7+ $11 Kd2 57. Rb7) 56... Ke2 $1 {[%emt 0:02:06]} 57. Re7+ {[%emt 0:00:24]} Kf1 {[%emt 0:00:01]} 58. a8=Q 0-1